fUST/lending_fUST_20250206
["ID","MTS","AMOUNT","RATE_DAILY","PERIOD"]
[351913792,1738839045959,-500.0,0.00014109,2]
[351913794,1738839045968,-675.16,0.00014109,2]
[351913795,1738839045977,-500.0,0.00014109,2]
[351913796,1738839045987,-723.69,0.00014109,2]
[351913797,1738839045996,-1233.84,0.00014109,2]
[351913798,1738839046006,-500.0,0.00014109,2]
[351913799,1738839046015,-1291.65,0.00014109,2]
[351913800,1738839046024,-500.0,0.00014109,2]
[351913801,1738839046034,-643.62,0.00014109,2]
[351913802,1738839046043,-500.0,0.00014109,2]
[351913803,1738839046053,-825.6,0.00014109,2]
[351913804,1738839046062,-1164.11,0.00014109,2]
[351913805,1738839046072,-500.0,0.00014109,2]
[351913806,1738839046081,-500.0,0.00014109,2]
[351913807,1738839046090,-435.15615268,0.00014109,2]
[351913808,1738839046100,-500.0,0.00014109,2]
[351913809,1738839046110,-500.0,0.00014109,2]
[351913810,1738839046126,-479.97331513,0.00014109,2]
[351913811,1738839046137,-646.91,0.00014109,2]
[351913812,1738839046147,-500.0,0.00014109,2]
[351913813,1738839046157,-500.0,0.00014109,2]
[351913814,1738839046167,-500.0,0.00014109,2]
[351913815,1738839046176,-1304.49,0.00014109,2]
[351913816,1738839046186,-665.48,0.00014109,2]
[351913817,1738839046195,-500.0,0.00014109,2]
[351913818,1738839046204,-500.0,0.00014109,2]
[351913819,1738839046214,-1602.25,0.00014109,2]
[351913820,1738839046224,-475.45449773,0.00014109,2]
[351913821,1738839046233,-500.0,0.00014109,2]
[351913822,1738839046243,-500.0,0.00014109,2]
[351913823,1738839046253,-691.48,0.00014109,2]
[351913824,1738839046262,-1215.81,0.00014109,2]
[351913826,1738839046272,-500.0,0.00014109,2]
[351913828,1738839046282,-641.21,0.00014109,2]
[351913830,1738839046291,-500.0,0.00014109,2]
[351913831,1738839046301,-500.0,0.00014109,2]
[351913832,1738839046311,-578.73,0.00014109,2]
[351913833,1738839046320,-500.0,0.00014109,2]
[351913834,1738839046330,-3576.0,0.00014109,2]
[351913835,1738839046340,-705.64,0.00014109,2]
[351913836,1738839046351,-1030.99,0.00014109,2]
[351913837,1738839046361,-509.0015204,0.00014109,2]
[351913838,1738839046371,-8540.71,0.00014109,2]
[351913839,1738839046381,-234.65019654,0.00014109,2]
[351913840,1738839046391,-500.0,0.00014109,2]
[351913841,1738839046401,-500.0,0.00014109,2]
[351913842,1738839046413,-862.01,0.00014109,2]
[351913843,1738839046423,-616.92141906,0.00014109,2]
[351913844,1738839046434,-500.0,0.00014109,2]
[351913845,1738839046443,-1595.17,0.00014109,2]
[351913846,1738839046453,-500.0,0.00014109,2]
[351913847,1738839046463,-1247.5,0.00014109,2]
[351913848,1738839046473,-4569.08,0.00014109,2]
[351913849,1738839046483,-1258.02,0.00014109,2]
[351913850,1738839046494,-500.0,0.00014109,2]
[351913851,1738839046505,-500.0,0.00014109,2]
[351913852,1738839046515,-2423.02,0.00014109,2]
[351913853,1738839046525,-1358.68,0.00014109,2]
[351913854,1738839046534,-500.0,0.00014109,2]
[351913855,1738839046544,-2077.19,0.00014109,2]
[351913856,1738839046554,-28453.55,0.00014109,2]
[351913857,1738839046565,-6256.19,0.00014109,2]
[351913858,1738839046574,-206.959826,0.00014109,2]
[351913859,1738839046584,-16738.85,0.00014109,2]
[351913860,1738839046593,-500.0,0.00014109,2]
[351913861,1738839046603,-500.0,0.00014109,2]
[351913862,1738839046613,-2428.01,0.00014109,2]
[351913863,1738839046623,-193.711452,0.00014109,2]
[351913864,1738839046632,-1662.89,0.00014109,2]
[351913865,1738839046642,-193.711452,0.00014109,2]
[351913866,1738839046651,-507.25544204,0.00014109,2]
[351913867,1738839046661,-1519.04,0.00014109,2]
[351913868,1738839046670,-1479.2,0.00014109,2]
[351913869,1738839046681,-151.0,0.00014109,2]
[351913870,1738839046691,-798.79,0.00014109,2]
[351913871,1738839046716,-151.0,0.00014109,2]
[351913872,1738839046725,-2284.29,0.00014109,2]
[351913873,1738839046735,-1419.49,0.00014109,2]
[351913874,1738839046744,-1386.64,0.00014109,2]
[351913875,1738839046754,-500.0,0.00014109,2]
[351913876,1738839046764,-500.0,0.00014109,2]
[351913877,1738839046773,-500.0,0.00014109,2]
[351913878,1738839046783,-827.09,0.00014109,2]
[351913879,1738839046793,-163.52733173,0.00014109,2]
[351913880,1738839046802,-500.0,0.00014109,2]
[351913881,1738839046812,-500.0,0.00014109,2]
[351913882,1738839046822,-696.94,0.00014109,2]
[351913883,1738839046832,-500.0,0.00014109,2]
[351913884,1738839046841,-271.1493409,0.00014109,2]
[351913885,1738839046851,-151.0,0.00014109,2]
[351913886,1738839046861,-500.0,0.00014109,2]
[351913887,1738839046871,-500.0,0.00014109,2]
[351913888,1738839046880,-500.0,0.00014109,2]
[351913889,1738839046890,-151.0,0.00014109,2]
[351913890,1738839046900,-500.0,0.00014109,2]
[351913891,1738839046910,-500.0,0.00014109,2]
[351913892,1738839046919,-500.0,0.00014109,2]
[351913893,1738839046929,-650.14,0.00014109,2]
[351913894,1738839046939,-500.0,0.00014109,2]
[351913895,1738839046950,-840.33,0.00014109,2]
[351913896,1738839046959,-780.34,0.00014109,2]
[351913897,1738839046969,-3599.89,0.00014109,2]
[351913898,1738839046979,-500.0,0.00014109,2]
[351913899,1738839046989,-500.0,0.00014109,2]
[351913900,1738839046999,-845.49,0.00014109,2]
[351913901,1738839047009,-151.0,0.00014109,2]
[351913902,1738839047019,-199.662118,0.00014109,2]
[351913903,1738839047030,-3363.64,0.00014109,2]
[351913904,1738839047040,-500.0,0.00014109,2]
[351913905,1738839047050,-199.662118,0.00014109,2]
[351913906,1738839047059,-500.0,0.00014109,2]
[351913907,1738839047069,-1655.67,0.00014109,2]
[351913908,1738839047079,-3668.98,0.00014109,2]
[351913909,1738839047090,-1917.16,0.00014109,2]
[351913910,1738839047101,-151.0,0.00014109,2]
[351913911,1738839047110,-279.13497554,0.00014109,2]
[351913912,1738839047120,-870.22,0.00014109,2]
[351913913,1738839047129,-886.01,0.00014109,2]
[351913914,1738839047138,-310.48206826,0.00014109,2]
[351913915,1738839047148,-151.0,0.00014109,2]
[351913916,1738839047158,-619.78,0.00014109,2]
[351913917,1738839047168,-1742.89,0.00014109,2]
[351913918,1738839047178,-1425.57,0.00014109,2]
[351913919,1738839047189,-9592.94,0.00014109,2]
[351913920,1738839047202,-151.0,0.00014109,2]
[351913921,1738839047213,-500.0,0.00014109,2]
[351913922,1738839047223,-1000.356354,0.00014109,2]
[351913923,1738839047235,-500.0,0.00014109,2]
[351913924,1738839047246,-1000.356354,0.00014109,2]
[351913925,1738839047256,-167.889512,0.00014109,2]
[351913926,1738839047266,-706.9,0.00014109,2]
[351913927,1738839047276,-151.0,0.00014109,2]
[351913928,1738839047285,-14729.27,0.00014109,2]
[351913929,1738839047296,-500.0,0.00014109,2]
[351913930,1738839047307,-3340.79,0.00014109,2]
[351913931,1738839047317,-1206.81,0.00014109,2]
[351913932,1738839047328,-151.0,0.00014109,2]
[351913933,1738839047339,-2283.75,0.00014109,2]
[351913934,1738839047349,-151.0,0.00014109,2]
[351913935,1738839047359,-3339.14,0.00014109,2]
[351913936,1738839047369,-1407.63,0.00014109,2]
[351913937,1738839047379,-151.0,0.00014109,2]
[351913938,1738839047390,-500.0,0.00014109,2]
[351913939,1738839047400,-354.6875562,0.00014164,2]
[351913940,1738839047410,-12089.88860257,0.00014196,2]
[351913941,1738839047420,-158.379,0.00014221,2]
[351913942,1738839047431,-372.0781146,0.00014239,2]
[351913943,1738839047443,-500.0,0.00014246,2]
[351913944,1738839047454,-500.0,0.00014246,2]
[351913945,1738839047464,-500.0,0.00014246,2]
[351913946,1738839047474,-975.31,0.00014246,2]
[351913947,1738839047484,-624.4,0.00014246,2]
[351913948,1738839047494,-1676.92,0.00014246,2]
[351913949,1738839047504,-528.35,0.00014246,2]
[351913950,1738839047513,-735.5,0.00014246,2]
[351913951,1738839047524,-500.0,0.00014246,2]
[351913952,1738839047534,-500.0,0.00014246,2]
[351913953,1738839047544,-500.0,0.00014246,2]
[351913954,1738839047555,-500.0,0.00014246,2]
[351913955,1738839047565,-675.16,0.00014246,2]
[351913956,1738839047575,-500.0,0.00014246,2]
[351913957,1738839047585,-723.69,0.00014246,2]
[351913958,1738839047596,-1233.84,0.00014246,2]
[351913959,1738839047606,-575.64500576,0.00014246,2]
[351913960,1738839047615,-1291.65,0.00014246,2]
[351913961,1738839047625,-500.0,0.00014246,2]
[351913962,1738839047635,-643.62,0.00014246,2]
[351913963,1738839047645,-500.0,0.00014246,2]
[351913964,1738839047655,-825.6,0.00014246,2]
[351913965,1738839047666,-1164.11,0.00014246,2]
[351913966,1738839047677,-500.0,0.00014246,2]
[351913967,1738839047688,-500.0,0.00014246,2]
[351913968,1738839047699,-500.0,0.00014246,2]
[351913969,1738839047708,-500.0,0.00014246,2]
[351913970,1738839047717,-646.91,0.00014246,2]
[351913971,1738839047728,-500.0,0.00014246,2]
[351913972,1738839047739,-500.0,0.00014246,2]
[351913973,1738839047749,-500.0,0.00014246,2]
[351913974,1738839047760,-1304.49,0.00014246,2]
[351913975,1738839047771,-665.48,0.00014246,2]
[351913976,1738839047780,-500.0,0.00014246,2]
[351913977,1738839047790,-500.0,0.00014246,2]
[351913978,1738839047801,-1602.25,0.00014246,2]
[351913979,1738839047815,-151.0,0.00014246,2]
[351913980,1738839047825,-500.0,0.00014246,2]
[351913981,1738839047835,-500.0,0.00014246,2]
[351913982,1738839047846,-691.48,0.00014246,2]
[351913983,1738839047856,-1215.81,0.00014246,2]
[351913984,1738839047870,-500.0,0.00014246,2]
[351913985,1738839047886,-641.21,0.00014246,2]
[351913986,1738839047900,-500.0,0.00014246,2]
[351913987,1738839047909,-500.0,0.00014246,2]
[351913988,1738839047919,-578.73,0.00014246,2]
[351913989,1738839047930,-151.0,0.00014246,2]
[351913990,1738839047939,-151.0,0.00014246,2]
[351913991,1738839047951,-500.0,0.00014246,2]
[351913992,1738839047962,-3576.0,0.00014246,2]
[351913993,1738839047972,-151.0,0.00014246,2]
[351913994,1738839047982,-705.64,0.00014246,2]
[351913995,1738839047992,-1030.99,0.00014246,2]
[351913996,1738839048002,-282.980097,0.00014246,2]
[351913997,1738839048013,-8540.71,0.00014246,2]
[351913998,1738839048024,-282.980097,0.00014246,2]
[351913999,1738839048034,-151.0,0.00014246,2]
[351914000,1738839048045,-500.0,0.00014246,2]
[351914001,1738839048056,-500.0,0.00014246,2]
[351914002,1738839048067,-862.01,0.00014246,2]
[351914003,1738839048079,-232.379759,0.00014246,2]
[351914004,1738839048091,-500.0,0.00014246,2]
[351914005,1738839048103,-232.379759,0.00014246,2]
[351914006,1738839048117,-1595.17,0.00014246,2]
[351914007,1738839048128,-500.0,0.00014246,2]
[351914008,1738839048138,-1247.5,0.00014246,2]
[351914009,1738839048149,-4569.08,0.00014246,2]
[351914010,1738839048161,-1258.02,0.00014246,2]
[351914011,1738839048177,-500.0,0.00014246,2]
[351914012,1738839048188,-500.0,0.00014246,2]
[351914013,1738839048200,-2423.02,0.00014246,2]
[351914014,1738839048211,-1358.68,0.00014246,2]
[351914015,1738839048223,-500.0,0.00014246,2]
[351914016,1738839048233,-2077.19,0.00014246,2]
[351914017,1738839048245,-28453.55,0.00014246,2]
[351914018,1738839048255,-6256.19,0.00014246,2]
[351914019,1738839048269,-16738.85,0.00014246,2]
[351914020,1738839048287,-500.0,0.00014246,2]
[351914021,1738839048299,-500.0,0.00014246,2]
[351914022,1738839048310,-2428.01,0.00014246,2]
[351914023,1738839048321,-193.711452,0.00014246,2]
[351914024,1738839048332,-1662.89,0.00014246,2]
[351914025,1738839048343,-193.711452,0.00014246,2]
[351914026,1738839048354,-1519.04,0.00014246,2]
[351914027,1738839048366,-1479.2,0.00014246,2]
[351914028,1738839048378,-151.0,0.00014246,2]
[351914029,1738839048388,-798.79,0.00014246,2]
[351914030,1738839048399,-151.0,0.00014246,2]
[351914031,1738839048411,-2284.29,0.00014246,2]
[351914032,1738839048426,-1419.49,0.00014246,2]
[351914033,1738839048437,-1386.64,0.00014246,2]
[351914034,1738839048451,-500.0,0.00014246,2]
[351914035,1738839048462,-500.0,0.00014246,2]
[351914036,1738839048473,-500.0,0.00014246,2]
[351914037,1738839048484,-827.09,0.00014246,2]
[351914038,1738839048496,-500.0,0.00014246,2]
[351914039,1738839048507,-696.94,0.00014246,2]
[351914040,1738839048518,-500.0,0.00014246,2]
[351914041,1738839048529,-151.0,0.00014246,2]
[351914042,1738839048540,-500.0,0.00014246,2]
[351914043,1738839048708,-500.0,0.00014246,2]
[351914044,1738839048719,-500.0,0.00014246,2]
[351914045,1738839048729,-151.0,0.00014246,2]
[351914046,1738839048739,-500.0,0.00014246,2]
[351914047,1738839048749,-500.0,0.00014246,2]
[351914048,1738839048759,-500.0,0.00014246,2]
[351914049,1738839048771,-650.14,0.00014246,2]
[351914050,1738839048781,-500.0,0.00014246,2]
[351914051,1738839048791,-840.33,0.00014246,2]
[351914052,1738839048801,-780.34,0.00014246,2]
[351914053,1738839048811,-3599.89,0.00014246,2]
[351914054,1738839048822,-500.0,0.00014246,2]
[351914055,1738839048831,-500.0,0.00014246,2]
[351914056,1738839048841,-845.49,0.00014246,2]
[351914057,1738839048851,-151.0,0.00014246,2]
[351914058,1738839048860,-199.662118,0.00014246,2]
[351914059,1738839048870,-500.0,0.00014246,2]
[351914060,1738839048880,-3363.64,0.00014246,2]
[351914061,1738839048889,-199.662118,0.00014246,2]
[351914062,1738839048899,-500.0,0.00014246,2]
[351914063,1738839048908,-1655.67,0.00014246,2]
[351914064,1738839048918,-3668.98,0.00014246,2]
[351914065,1738839048927,-1917.16,0.00014246,2]
[351914066,1738839048937,-870.22,0.00014246,2]
[351914067,1738839048948,-886.01,0.00014246,2]
[351914068,1738839048957,-619.78,0.00014246,2]
[351914069,1738839048967,-1742.89,0.00014246,2]
[351914070,1738839048976,-1425.57,0.00014246,2]
[351914071,1738839048985,-9592.94,0.00014246,2]
[351914072,1738839048995,-500.0,0.00014246,2]
[351914073,1738839049004,-500.0,0.00014246,2]
[351914074,1738839049014,-706.9,0.00014246,2]
[351914075,1738839049023,-14729.27,0.00014246,2]
[351914076,1738839049032,-500.0,0.00014246,2]
[351914077,1738839049041,-3340.79,0.00014246,2]
[351914078,1738839049051,-1206.81,0.00014246,2]
[351914079,1738839049060,-2283.75,0.00014246,2]
[351914080,1738839049069,-3339.14,0.00014246,2]
[351914081,1738839049078,-1407.63,0.00014246,2]
[351914082,1738839049088,-500.0,0.00014246,2]
[351914083,1738839049097,-276.9926375,0.00014247,2]
[351914084,1738839049107,-500.0,0.00014248,2]
[351914085,1738839049116,-500.0,0.00014248,2]
[351914086,1738839049126,-256.56217126,0.00014263,2]
[351914087,1738839049135,-500.0,0.0001428,2]
[351914088,1738839049145,-223.42664687,0.00014299,2]
[351914089,1738839049154,-160.0,0.00014299,2]
[351914090,1738839049163,-151.0,0.00014299,2]
[351914091,1738839049173,-151.0,0.00014299,2]
[351914092,1738839049182,-151.0,0.00014299,2]
[351914093,1738839049191,-1000.356354,0.00014299,2]
[351914094,1738839049202,-1000.356354,0.00014299,2]
[351914095,1738839049211,-160.44172471,0.00014299,2]
[351914096,1738839049220,-151.0,0.00014299,2]
[351914097,1738839049230,-151.0,0.00014299,2]
[351914098,1738839049241,-75819.25091103,0.00014299,5]
[351914099,1738839049458,-49250.31374074,0.00014299,5]
[351914100,1738839049468,-365727.29896917,0.000143,5]
[351914101,1738839050126,-900.79,0.00013698,2]
[351914102,1738839050136,-500.0,0.00013698,2]
[351914103,1738839050145,-500.0,0.00013698,2]
[351914104,1738839050155,-500.0,0.00013698,2]
[351914105,1738839050164,-900.79,0.00013835,2]
[351914106,1738839050173,-500.0,0.00013835,2]
[351914107,1738839050182,-900.79,0.00013972,2]
[351914108,1738839050191,-500.0,0.00013972,2]
[351914109,1738839050203,-900.79,0.00014109,2]
[351914110,1738839050212,-500.0,0.00014109,2]
[351914111,1738839050221,-900.79,0.00014246,2]
[351914112,1738839050230,-500.0,0.00014246,2]
[351914113,1738839050240,-204917.1105484,0.000143,5]
[351914114,1738839050249,-745807.78193806,0.000143,5]
[351914115,1738839050266,-98889.49999998,0.000143,5]
[351914116,1738839050352,-420.52709147,0.000143,5]
[351914117,1738839050605,-6147.195125,0.000143,5]
[351914118,1738839050627,-44.12542755,0.000143,5]
[351914120,1738839596479,-300.0,0.00012326,2]
[351914121,1738839596505,-14422.75,0.00012327,2]
[351914127,1738840032147,-277.06826792,0.00012203,2]
[351914128,1738840032170,-248.3552772,0.00012326,2]
[351914129,1738840039084,-51.6447228,0.00012326,2]
[351914130,1738840039106,-700.16352826,0.00012327,2]
[351914131,1738840039141,-1433.64203844,0.00012327,2]
[351914132,1738840146145,-900.0,0.00012054,2]
[351914133,1738840146167,-206.4270123,0.00012398,2]
[351914134,1738840146189,-202.5735593,0.00012404,2]
[351914135,1738840146211,-300.0,0.00012479,2]
[351914136,1738840146235,-24900.0,0.0001248,2]
[351914137,1738840146257,-1933.4708284,0.0001254,2]
[351914138,1738840154111,-490.0,0.0001254,2]
[351914139,1738840159119,-90.8627043,0.0001254,2]
[351914140,1738840159144,-638.51848901,0.0001305,2]
[351914141,1738840159167,-871.28063999,0.0001305,2]
[351914142,1738840159190,-507.3181667,0.00013197,2]
[351914184,1738840232402,-3117.56603137,0.00012227,2]
[351914186,1738840232411,-300.0,0.00013196,2]
[351914188,1738840232420,-7438.69753278,0.00013197,2]
[351914190,1738840232429,-900.0,0.00013424,2]
[351914192,1738840232439,-572.82060506,0.00013598,2]
[351914194,1738840232448,-215.28696348,0.00013598,2]
[351914195,1738840232460,-354.6875562,0.00013616,2]
[351914197,1738840232470,-158.78,0.0001366,2]
[351914198,1738840232480,-500.0,0.00013673,2]
[351914200,1738840232490,-256.56217126,0.00013673,2]
[351914202,1738840232501,-151.0,0.0001369,2]
[351914204,1738840232510,-500.0,0.00013697,2]
[351914206,1738840232525,-500.0,0.00013697,2]
[351914208,1738840232542,-199.73913229,0.00013697,2]
[351914210,1738840232556,-500.0,0.00013697,2]
[351914212,1738840232567,-316.40134557,0.00013697,2]
[351914213,1738840232579,-500.0,0.00013697,2]
[351914215,1738840232588,-500.0,0.00013697,2]
[351914217,1738840232598,-500.0,0.00013698,2]
[351914219,1738840232607,-500.0,0.00013698,2]
[351914220,1738840232616,-536.54576892,0.00013698,2]
[351914221,1738840232626,-500.0,0.00013698,2]
[351914222,1738840232635,-500.0,0.00013698,2]
[351914223,1738840232645,-500.0,0.00013698,2]
[351914224,1738840232654,-501.79114185,0.00013698,2]
[351914225,1738840232663,-500.0,0.00013698,2]
[351914226,1738840232673,-494.95366369,0.00013698,2]
[351914227,1738840232683,-500.0,0.00013698,2]
[351914228,1738840232692,-500.0,0.00013698,2]
[351914229,1738840232703,-498.68632513,0.00013698,2]
[351914230,1738840232712,-432.35824208,0.00013698,2]
[351914231,1738840232722,-500.0,0.00013698,2]
[351914232,1738840232731,-553.76790137,0.00013698,2]
[351914233,1738840232741,-537.72,0.00013698,2]
[351914234,1738840232750,-500.0,0.00013698,2]
[351914235,1738840232759,-500.0,0.00013698,2]
[351914236,1738840232768,-500.0,0.00013698,2]
[351914237,1738840232778,-500.0,0.00013698,2]
[351914238,1738840232788,-336.88938994,0.00013698,2]
[351914239,1738840232801,-373.35901399,0.00013698,2]
[351914240,1738840232811,-500.0,0.00013698,2]
[351914241,1738840232820,-500.0,0.00013698,2]
[351914242,1738840232829,-500.0,0.00013698,2]
[351914243,1738840232838,-500.0,0.00013698,2]
[351914244,1738840232848,-500.0,0.00013698,2]
[351914245,1738840232857,-500.0,0.00013698,2]
[351914246,1738840232867,-500.0,0.00013698,2]
[351914247,1738840232877,-500.0,0.00013698,2]
[351914248,1738840232887,-500.0,0.00013698,2]
[351914249,1738840232896,-500.0,0.00013698,2]
[351914250,1738840232906,-708.83,0.00013698,2]
[351914251,1738840232915,-500.0,0.00013698,2]
[351914252,1738840232924,-500.0,0.00013698,2]
[351914253,1738840232933,-500.0,0.00013698,2]
[351914254,1738840232943,-475.45449773,0.00013698,2]
[351914255,1738840232953,-500.0,0.00013698,2]
[351914256,1738840232964,-500.0,0.00013698,2]
[351914257,1738840232973,-500.0,0.00013698,2]
[351914258,1738840232982,-500.0,0.00013698,2]
[351914259,1738840232991,-500.0,0.00013698,2]
[351914260,1738840233000,-658.73,0.00013698,2]
[351914261,1738840233010,-1716.18,0.00013698,2]
[351914262,1738840233019,-500.0,0.00013698,2]
[351914263,1738840233029,-500.0,0.00013698,2]
[351914264,1738840233039,-500.0,0.00013698,2]
[351914265,1738840233048,-500.0,0.00013698,2]
[351914266,1738840233058,-500.0,0.00013698,2]
[351914267,1738840233068,-778.17,0.00013698,2]
[351914268,1738840233077,-501.75703181,0.00013698,2]
[351914269,1738840233087,-502.04530904,0.00013698,2]
[351914270,1738840233097,-501.20303368,0.00013698,2]
[351914271,1738840233108,-500.91212247,0.00013698,2]
[351914272,1738840233118,-500.0,0.00013698,2]
[351914273,1738840233128,-500.0,0.00013698,2]
[351914274,1738840233139,-500.0,0.00013698,2]
[351914275,1738840233158,-507.20707268,0.00013698,2]
[351914276,1738840233171,-500.0,0.00013698,2]
[351914277,1738840233190,-500.0,0.00013698,2]
[351914278,1738840233200,-500.0,0.00013698,2]
[351914279,1738840233212,-500.0,0.00013698,2]
[351914280,1738840233223,-500.0,0.00013698,2]
[351914281,1738840233234,-500.0,0.00013698,2]
[351914282,1738840233245,-500.0,0.00013698,2]
[351914283,1738840233255,-500.0,0.00013698,2]
[351914284,1738840233266,-500.0,0.00013698,2]
[351914285,1738840233277,-805.85,0.00013698,2]
[351914286,1738840233287,-500.0,0.00013698,2]
[351914287,1738840233297,-513.82727135,0.00013698,2]
[351914288,1738840233308,-500.0,0.00013698,2]
[351914289,1738840233319,-500.0,0.00013698,2]
[351914290,1738840233330,-500.0,0.00013698,2]
[351914291,1738840233340,-500.0,0.00013698,2]
[351914292,1738840233350,-500.0,0.00013698,2]
[351914293,1738840233361,-500.0,0.00013698,2]
[351914294,1738840233372,-500.0,0.00013698,2]
[351914295,1738840233383,-389.23331639,0.00013698,2]
[351914296,1738840233393,-500.0,0.00013698,2]
[351914297,1738840233404,-1368.06,0.00013698,2]
[351914298,1738840233414,-500.0,0.00013698,2]
[351914299,1738840233425,-661.76,0.00013698,2]
[351914300,1738840233435,-500.0,0.00013698,2]
[351914301,1738840233445,-1378.6,0.00013698,2]
[351914302,1738840233457,-500.0,0.00013698,2]
[351914303,1738840233467,-500.0,0.00013698,2]
[351914304,1738840233477,-500.0,0.00013698,2]
[351914305,1738840233487,-500.0,0.00013698,2]
[351914306,1738840233498,-500.0,0.00013698,2]
[351914307,1738840233508,-500.0,0.00013698,2]
[351914308,1738840233519,-508.09432037,0.00013698,2]
[351914309,1738840233530,-500.0,0.00013698,2]
[351914310,1738840233542,-500.0,0.00013698,2]
[351914311,1738840233552,-500.0,0.00013698,2]
[351914312,1738840233563,-500.0,0.00013698,2]
[351914313,1738840233575,-528.34524524,0.00013698,2]
[351914314,1738840233586,-752.41,0.00013698,2]
[351914315,1738840233597,-500.0,0.00013698,2]
[351914316,1738840233609,-500.0,0.00013698,2]
[351914317,1738840233620,-1026.27,0.00013698,2]
[351914318,1738840233632,-500.0,0.00013698,2]
[351914319,1738840233643,-500.0,0.00013698,2]
[351914320,1738840233654,-500.0,0.00013698,2]
[351914321,1738840233665,-523.26795905,0.00013698,2]
[351914322,1738840233676,-500.0,0.00013698,2]
[351914323,1738840233687,-500.0,0.00013698,2]
[351914324,1738840233698,-500.0,0.00013698,2]
[351914325,1738840233710,-1270.97,0.00013698,2]
[351914326,1738840233721,-658.58,0.00013698,2]
[351914327,1738840233732,-500.0,0.00013698,2]
[351914328,1738840233742,-500.0,0.00013698,2]
[351914329,1738840233753,-500.0,0.00013698,2]
[351914330,1738840233764,-1185.33,0.00013698,2]
[351914331,1738840233775,-500.0,0.00013698,2]
[351914332,1738840233786,-500.0,0.00013698,2]
[351914333,1738840233797,-500.0,0.00013698,2]
[351914334,1738840233807,-500.0,0.00013698,2]
[351914335,1738840233818,-500.0,0.00013698,2]
[351914336,1738840233829,-1568.43,0.00013698,2]
[351914337,1738840233840,-500.0,0.00013698,2]
[351914338,1738840233850,-500.0,0.00013698,2]
[351914339,1738840233860,-500.0,0.00013698,2]
[351914340,1738840233869,-322.00376972,0.00013698,2]
[351914341,1738840233887,-177.99623028,0.00013698,2]
[351914342,1738840233897,-1255.13,0.00013698,2]
[351914343,1738840233907,-500.0,0.00013698,2]
[351914344,1738840233916,-593.96,0.00013698,2]
[351914345,1738840233927,-500.0,0.00013698,2]
[351914346,1738840233939,-683.5,0.00013698,2]
[351914347,1738840233949,-500.0,0.00013698,2]
[351914348,1738840233960,-635.33,0.00013698,2]
[351914349,1738840233970,-500.0,0.00013698,2]
[351914350,1738840233980,-500.0,0.00013698,2]
[351914351,1738840233990,-500.0,0.00013698,2]
[351914352,1738840234004,-713.7,0.00013698,2]
[351914353,1738840234014,-599.56,0.00013698,2]
[351914354,1738840234024,-500.0,0.00013698,2]
[351914355,1738840234034,-500.0,0.00013698,2]
[351914356,1738840234044,-2231.15,0.00013698,2]
[351914357,1738840234054,-500.0,0.00013698,2]
[351914358,1738840234065,-2590.63391194,0.00013698,2]